[Event "Uruguayan Championship 2022"]
[Site "Montevideo"]
[Date "2022.04.16"]
[Round "9.1"]
[White "Carbone, Diego"]
[Black "Palacio, Enzo"]
[Result "1-0"]
[ECO "E62"]
[WhiteElo "2272"]
[BlackElo "1896"]
[Annotator "TA"]
[PlyCount "161"]
[EventDate "2022.04.08"]
[EventType "tourn"]
[EventCountry "URU"]
[SourceTitle "playchess.com"]
[Source "ChessBase"]
[SourceQuality "1"]
[TimeControl "40/5400+30:1800+30"]

{[%evp 19,161,19,23,29,33,18,26,20,18,14,22,13,26,16,31,11,29,24,66,74,83,64,81,48,44,26,25,28,25,24,14,3,52,12,50,35,23,8,44,19,19,21,19,20,49,49,77,16,63,58,45,12,0,6,2,2,3,-32,-28,-47,0,0,0,0,0,0,0,0,0,0,0,0,0,0,0,0,0,0,0,0,0,0,0,0,0,0,0,0,0,0,0,0,12830,6195,6652,12831,12835,12836,12836,1065,12842,12842,12842,12842,12846,12847,12847,12847,12847,12847,27999,27999,27999,27999,27995,27995,27996,27996,27997,27997,27998,27998,27999,27999,27999,27996,27997,27995,27996,27994,27995,27995,27996,27994,27995,-28000,27999,27999,27992,27999,27999,27999,27998,27998]} 1. d4 {[%emt 0:00:03]} Nf6 {[%emt 0:00:03]} 2. c4 {[%emt 0:00:21]} g6 {[%emt 0:00:07]} 3. g3 {[%emt 0:00:21]} Bg7 {[%emt 0:00:10]} 4. Bg2 {[%emt 0:00:08]} O-O {[%emt 0:00:07]} 5. Nc3 {[%emt 0:00:21]} d6 {[%emt 0:00:13]} 6. Nf3 {[%emt 0:00:16]} Nc6 {[%emt 0:01:17]} 7. O-O {[%emt 0:00:35]} Bf5 {[%emt 0:00:57]} 8. d5 {[%emt 0:07:29]} Na5 {[%emt 0:00:24]} 9. Nd4 {[%emt 0:00:08]} Bd7 {[%emt 0:00:29]} 10. Qd3 {[%emt 0:04:37]} c5 {[%emt 0:01:40]} 11. dxc6 {[%emt 0:06:12] E62: King's Indian: Fianchetto: 6...c6 and Panno Variation (6...Nc6) without ...a6.} Nxc6 {[%emt 0:00:12]} 12. Nxc6 {[%emt 0:01:39]} bxc6 {[%emt 0:00:13]} 13. Bd2 {[%emt 0:02:05] White has an edge.} (13. Bf4 {is interesting.} Ng4 14. b3 Qa5 15. Rac1) 13... Rb8 {[%emt 0:05:32]} 14. b3 {[%emt 0:04:38] [#]} Qc8 $146 {[%emt 0:03:21]} ({Predecessor:} 14... d5 15. cxd5 cxd5 16. Bf4 Rc8 17. Be5 e6 18. Rac1 Qb6 19. Qd4 Qxd4 20. Bxd4 Ng4 21. Bxg7 Kxg7 {0-1 (27) Stuhlik,M (2244)-Timoscenko,G (2522) Oberwart 2002}) 15. Rfe1 {[%emt 0:03:14]} Rd8 {[%emt 0:06:13]} 16. Rac1 {[%emt 0:02:02]} Qa6 {[%emt 0:03:16]} 17. c5 {[%emt 0:08:35]} Qxd3 {[%emt 0:31:15]} 18. exd3 {[%emt 0:00:10]} Kf8 {[%emt 0:03:28]} 19. cxd6 {[%emt 0:05:45]} exd6 {[%emt 0:00:59]} 20. Bf4 {[%emt 0:00:33]} Be8 {[%emt 0:01:06]} 21. d4 {[%emt 0:10:31] 0x0.0023821a128edp-1022s more active pieces.} h6 {[%emt 0:09:05]} 22. Ne4 {[%emt 0:02:55]} Nxe4 {[%emt 0:01:24]} 23. Bxe4 {[%emt 0:00:03]} g5 {[%emt 0:04:13]} 24. Be3 {[%emt 0:00:29]} d5 {[%emt 0:01:18]} 25. Bf5 {[%emt 0:02:54]} Rb4 {[%emt 0:01:59]} (25... Rb6 $11) 26. Rc2 {[%emt 0:06:14]} Ra8 {[%emt 0:09:44]} 27. Bd2 {[%emt 0:04:59][%cal Be3d2,Bd2c3,Bc3b2,Bb2a3,Ba3c5][%mdl 32]} Rb7 {[%emt 0:03:57]} 28. Bc3 {[%emt 0:01:29]} Rd8 {[%emt 0:01:36]} 29. Bb2 {[%emt 0:03:39]} Bf6 {[%emt 0:01:52]} 30. Ba3+ {[%emt 0:06:33]} Kg7 {[%emt 0:00:24]} 31. Bc5 {[%emt 0:00:06]} Bd7 {[%emt 0:01:24]} 32. Bxd7 {[%emt 0:00:44]} Rdxd7 {[%emt 0:01:43]} 33. Rce2 {[%emt 0:01:05]} (33. Re8 $16) 33... Bd8 {[%emt 0:02:43]} (33... Rd8 $11) 34. Re8 $14 {[%emt 0:02:02]} Bb6 {[%emt 0:00:21]} 35. Bf8+ {[%emt 0:01:33]} Kg6 {[%emt 0:00:31]} 36. Rc1 {[%emt 0:00:23]} Bxd4 {[%emt 0:03:28]} 37. Rxc6+ {[%emt 0:00:05]} f6 {[%emt 0:01:08]} 38. Ba3 {[%emt 0:04:48]} Rb6 {[%emt 0:00:44]} 39. Rcc8 {[%emt 0:00:34]} f5 {[%emt 0:00:43]} (39... Ra6 $15 40. Bc5 Bxc5 41. Rxc5 Rxa2) 40. Rg8+ {[%emt 0:01:35]} Kh7 {[%emt 0:00:27] Hoping for ...Ra6.} 41. Rgd8 {[%emt 0:33:54]} Rxd8 {[%emt 0:03:58]} 42. Rxd8 $11 {[%emt 0:00:00][%mdl 4096] Endgame KRB-KRB} Ra6 {[%emt 0:00:38]} 43. Rd7+ {[%emt 0:00:00]} Kg6 {[%emt 0:02:11]} 44. Rd6+ {[%emt 0:00:00]} Rxd6 {[%emt 0:00:04]} 45. Bxd6 {[%emt 0:00:00] KB-KB} Kf6 {[%emt 0:00:46]} 46. Kf1 {[%emt 0:00:00]} Ke6 {[%emt 0:00:45]} 47. Bf8 {[%emt 0:00:00]} h5 {[%emt 0:00:10]} 48. h3 {[%emt 0:00:00]} g4 {[%emt 0:02:06]} 49. hxg4 {[%emt 0:00:00]} fxg4 {[%emt 0:01:23] Threatens to win with ...Ke5.} 50. Ke2 {[%emt 0:00:00]} Kf5 {[%emt 0:00:37]} 51. b4 {[%emt 0:00:00][%cal Bb3b4,Bb4b5,Bb5a6][%mdl 32]} Ke4 {[%emt 0:01:35]} 52. Bc5 {[%emt 0:00:00]} a6 {[%emt 0:05:35]} 53. a4 {[%emt 0:00:00]} Be5 {[%emt 0:14:14]} 54. a5 {[%emt 0:00:00]} d4 {[%emt 0:03:09]} 55. b5 {[%emt 0:00:00]} Kd5 $2 {[%emt 0:00:05][%mdl 8192] [#]} (55... d3+ $11 56. Kd2 axb5) 56. bxa6 $1 $18 {[%emt 0:00:00]} Kc6 {[%emt 0:00:04] [#]} 57. Kd3 $1 {[%emt 0:00:00]} Bf6 {[%emt 0:01:21]} (57... Kc7 58. Bxd4) 58. Bxd4 {[%emt 0:00:57]} Be7 {[%emt 0:00:11]} 59. Ke4 {[%emt 0:03:56]} (59. Bb6 $142 h4 60. gxh4) 59... h4 {[%emt 0:00:35]} 60. gxh4 {[%emt 0:01:29]} Bxh4 {[%emt 0:00:02]} 61. Kf5 {[%emt 0:01:24]} Kc7 {[%emt 0:00:23] [#]} 62. Be5+ $1 {[%emt 0:00:09]} Kc6 {[%emt 0:00:56]} 63. Bg3 {[%emt 0:00:28]} Bd8 {[%emt 0:00:05]} 64. Kxg4 {[%emt 0:02:20]} Bxa5 {[%emt 0:00:04]} 65. Be5 {[%emt 0:02:35]} Kb6 {[%emt 0:01:44]} 66. f4 {[%emt 0:00:36]} Kxa6 {[%emt 0:00:04]} 67. f5 {[%emt 0:02:00]} Bd8 {[%emt 0:00:04]} 68. Kh5 {[%emt 0:00:20]} Kb7 {[%emt 0:00:14]} 69. Kg6 {[%emt 0:00:22]} Kc6 {[%emt 0:00:07]} 70. Bf4 {[%emt 0:01:21]} Kd7 {[%emt 0:01:01]} 71. Bg5 {[%emt 0:00:21]} Bb6 {[%emt 0:00:42]} 72. Kf7 {[%emt 0:01:00]} Bc5 {[%emt 0:00:43]} 73. Bf6 {[%emt 0:00:54]} Be3 {[%emt 0:00:47]} 74. Bc3 {[%emt 0:00:25]} Bg5 {[%emt 0:00:22]} 75. Kg6 {[%emt 0:00:23]} Be7 {[%emt 0:00:13]} 76. Bd2 {[%emt 0:00:27]} Ke8 {[%emt 0:01:08]} 77. Bg5 {[%emt 0:00:11]} Bd6 $4 {[%emt 0:00:04][%mdl 8192]} (77... Bxg5 78. Kxg5 Kf7) 78. f6 {[%emt 0:00:24][%cal Bf5f6,Bf6f7][%mdl 32] White mates.} Bc5 {[%emt 0:00:56]} 79. Bh6 {[%emt 0:01:22]} Bf8 {[%emt 0:00:28]} 80. Bxf8 {[%emt 0:00:20]} Kxf8 {[%emt 0:00:02]} 81. f7 {[%emt 0:00:09] Weighted Error Value: White=0.10 (very precise) /Black=0.10 (very precise)} 1-0

[Event "Uruguayan Championship 2022"]
[Site "Montevideo"]
[Date "2022.04.16"]
[Round "9.2"]
[White "Roselli Mailhe, Bernardo"]
[Black "Rodi, Luis Ernesto"]
[Result "0-1"]
[ECO "D35"]
[WhiteElo "2426"]
[BlackElo "2347"]
[Annotator "TA"]
[PlyCount "68"]
[EventDate "2022.04.08"]
[EventType "tourn"]
[EventCountry "URU"]
[SourceTitle "playchess.com"]
[Source "ChessBase"]
[SourceQuality "1"]
[TimeControl "40/5400+30:1800+30"]

{[%evp 13,68,15,16,23,22,14,21,11,23,16,26,23,27,14,23,5,25,-125,-117,-300,-298,-292,-295,-435,-456,-499,-500,-962,-946,-943,-951,-944,-948,-931,-929,-912,-880,-1000,-995,-940,-949,-1120,-1120,-1004,-997,-1168,-1165,-29942,-29955,-29976,-29973,-29986,-29987,-29987,-29988,-29993,-29994]} 1. d4 {[%emt 0:00:15]} d5 {[%emt 0:00:13]} 2. c4 {[%emt 0:00:09]} e6 {[%emt 0:00:06]} 3. Nc3 {[%emt 0:00:31]} Nf6 {[%emt 0:00:07]} 4. cxd5 {[%emt 0:02:44]} exd5 {[%emt 0:00:15]} 5. Bg5 {[%emt 0:00:06]} c6 {[%emt 0:00:06]} 6. e3 {[%emt 0:00:14]} Bd6 {[%emt 0:00:06]} 7. Bd3 {[%emt 0:01:09]} O-O {[%emt 0:00:16]} 8. Qc2 {[%emt 0:01:41][%cal Od3h7] Black should prevent Bxh7+! D35: Queen's Gambit Declined: Exchange Variation.} h6 {[%emt 0:00:16]} 9. Bh4 {[%emt 0:00:07]} Re8 {[%emt 0:00:06]} 10. Nge2 {[%emt 0:02:50] The position is equal.} a5 {[%emt 0:00:43]} 11. h3 {[%emt 0:07:56]} Na6 {[%emt 0:02:38][%cal Bb8a6,Ba6c7,Bc7e6,Be6g5,Bg5h3][%mdl 32]} 12. a3 {[%emt 0:00:07] Against Nb4} Nc7 {[%emt 0:00:11]} 13. O-O {[%emt 0:03:29]} Ne6 {[%emt 0:00:40]} 14. f3 {[%emt 0:11:22]} Ng5 {[%emt 0:00:53]} 15. e4 {[%emt 0:07:14] [#]} ({Better is} 15. f4 $11 Ne6 16. Ng3) 15... Nfxe4 $1 $17 {[%emt 0:02:36][%mdl 512] &Nero is more active.} 16. fxe4 {[%emt 0:01:33] [#] This move loses the game for White.} (16. Bxe4 $17 dxe4 17. Bxg5 (17. Nxe4 $2 Nxh3+ 18. gxh3 Qxh4 $19) 17... Qxg5 18. Nxe4) (16. Kh1 Nxc3) 16... Nxh3+ $1 $19 {[%emt 0:00:11][%mdl 512]} 17. gxh3 {[%emt 0:00:03]} Qxh4 {[%emt 0:00:07]} 18. e5 {[%emt 0:00:18] [#]} (18. Rf2 $142 Bxh3 19. Nxd5 (19. e5 $2 Rxe5 20. dxe5 Bc5 $19) 19... cxd5 20. e5) 18... Rxe5 $1 {[%emt 0:00:10][%mdl 512]} 19. Bh7+ {[%emt 0:09:43]} (19. dxe5 Bc5+) 19... Kh8 {[%emt 0:00:57] [#] ( -> ...Rg5+)} 20. Bf5 $146 {[%emt 0:00:10]} (20. dxe5 $142 Bc5+ 21. Nd4 Bxh3 22. Nce2 (22. Rxf7 $2 Bxd4+ 23. Kh1 Bxe5 $19) 22... Qg4+ 23. Kf2 Bxd4+ 24. Nxd4 Qxd4+ 25. Kg3 Bxf1 26. Rxf1 Qxe5+ 27. Kg2 Qg5+ 28. Kh1 Qh5+ 29. Qh2 Qxh2+ 30. Kxh2 Kxh7 31. Rxf7) ({Predecessor:} 20. dxe5 Bc5+ 21. Nd4 Bxd4+ 22. Kh1 Bxh3 23. Qh2 Bxe5 24. Qxe5 Bxf1+ 25. Kg1 Bh3 26. Bd3 Qg4+ 27. Kf2 Qg2+ 28. Ke3 Bd7 29. Qf4 Re8+ 30. Kd4 Qxb2 31. Rc1 Qb6# {0-1 (31) Ulrich,S (1974)-Zeng,S (2013) Saint Louis 2021}) 20... Qg5+ {[%emt 0:11:17]} 21. Bg4 {[%emt 0:00:24] [#]} Bxg4 $1 {[%emt 0:00:45]} 22. dxe5 {[%emt 0:03:39]} Bf5+ {[%emt 0:08:00][%mdl 64] Discovered Attack. A strong pair of Bishops.} 23. Kh1 {[%emt 0:00:52]} Bxc2 {[%emt 0:00:12]} 24. exd6 {[%emt 0:00:04]} Qe3 {[%emt 0:00:12]} 25. Nf4 {[%emt 0:02:43]} Rd8 {[%emt 0:01:08]} 26. Rae1 {[%emt 0:00:13]} Qg3 {[%emt 0:00:32]} 27. Re7 {[%emt 0:01:18]} Rxd6 {[%emt 0:01:13]} 28. Nce2 {[%emt 0:00:27]} Qh4 {[%emt 0:01:53]} 29. Rxf7 {[%emt 0:00:30]} Rf6 {[%emt 0:02:00]} 30. Rxb7 {[%emt 0:00:30]} d4 {[%emt 0:00:29][%cal Bd5d4,Bd4d3][%mdl 32] Black mates.} 31. Rb8+ {[%emt 0:05:42]} Kh7 {[%emt 0:00:17]} 32. Rb7 {[%emt 0:00:18]} Be4+ {[%emt 0:02:19]} 33. Kh2 {[%emt 0:00:07]} d3 {[%emt 0:01:35]} 34. Rg1 {[%emt 0:01:54]} Qf2+ {[%emt 0:00:26] Weighted Error Value: White=0.69/Black=0.02 (flawless)} 0-1

[Event "Uruguayan Championship 2022"]
[Site "Montevideo"]
[Date "2022.04.16"]
[Round "9.3"]
[White "Lopez Azambuja, Nicolas"]
[Black "Diaz Hollemaert, Nahuel"]
[Result "0-1"]
[ECO "D00"]
[WhiteElo "2318"]
[BlackElo "2439"]
[Annotator "TA"]
[PlyCount "114"]
[EventDate "2022.04.08"]
[EventType "tourn"]
[EventCountry "URU"]
[SourceTitle "playchess.com"]
[Source "ChessBase"]
[SourceQuality "1"]
[TimeControl "40/5400+30:1800+30"]

{[%evp 9,114,55,57,19,41,37,37,37,38,37,39,20,31,34,24,23,54,16,24,22,30,22,31,37,44,34,41,25,28,34,38,31,65,31,83,85,81,74,64,60,77,5,9,-8,0,-116,-112,-110,-119,-137,-106,-93,-63,-53,-56,-62,-46,-45,-30,-52,-23,-31,-3,-4,0,-4,0,0,0,-4,-4,-4,-4,-8,-8,-8,-8,-10,-4,-4,-4,-4,-4,-4,-4,-22,-25,-54,-64,-67,-20,-68,-68,-68,-70,-70,-69,-75,-70,-70,-20,-20,-20,-1510,-1504,-603,-519]} 1. d4 {[%emt 0:00:03]} d5 {[%emt 0:08:03]} 2. Bf4 {[%emt 0:01:44]} c6 {[%emt 0:08:59]} 3. e3 {[%emt 0:02:28]} Bf5 {[%emt 0:05:19]} 4. c4 {[%emt 0:05:32]} Bxb1 {[%emt 0:09:25]} 5. Qxb1 {[%emt 0:00:51]} e6 {[%emt 0:13:30]} 6. Bd3 {[%emt 0:03:26] [#] D00: 1 d4 d5: Unusual lines.} Qa5+ $146 {[%emt 0:10:35]} ({Predecessor:} 6... Bb4+ 7. Ke2 Nf6 8. c5 Nbd7 9. a3 Ba5 10. b4 Bc7 11. Bxc7 Qxc7 12. f4 h6 {1-0 (59) Sergeev,V (2472)-Belikov,V (2519) Alushta 2005}) 7. Ke2 {[%emt 0:02:35]} dxc4 {[%emt 0:00:25]} 8. Bxc4 {[%emt 0:00:36] White is slightly better.} Nd7 {[%emt 0:01:25]} 9. Nf3 {[%emt 0:04:00]} Ngf6 {[%emt 0:04:45]} 10. Rd1 {[%emt 0:09:37]} Be7 {[%emt 0:08:05]} 11. h3 {[%emt 0:04:19]} O-O {[%emt 0:05:28]} 12. Kf1 {[%emt 0:09:31]} Rac8 {[%emt 0:03:58]} 13. a3 {[%emt 0:04:12]} c5 {[%emt 0:03:04] Inhibits b4.} 14. Qa2 {[%emt 0:09:57][%cal Oc4e6]} Qb6 {[%emt 0:08:08]} 15. Rac1 {[%emt 0:06:49]} cxd4 {[%emt 0:00:29]} 16. Nxd4 {[%emt 0:02:10]} Kh8 {[%emt 0:01:04]} 17. Nf3 {[%emt 0:02:27]} a5 {[%emt 0:02:28]} 18. Ne5 {[%emt 0:05:57]} Nxe5 {[%emt 0:01:28]} 19. Bxe5 {[%emt 0:00:02]} Rfd8 {[%emt 0:00:18]} 20. Be2 {[%emt 0:05:11]} Rxc1 {[%emt 0:01:46]} 21. Rxc1 {[%emt 0:00:03]} Nd5 {[%emt 0:00:29] Against Bc7} (21... Ne4 $14) 22. Qc4 {[%emt 0:01:24]} Bf6 {[%emt 0:00:42]} 23. Bxf6 {[%emt 0:00:37]} gxf6 {[%emt 0:00:14]} 24. Rc2 {[%emt 0:04:03]} Rd6 {[%emt 0:00:28] [#]} 25. Qc8+ {[%emt 0:04:41]} ({White should play} 25. Qh4 $1 $16) 25... Kg7 $1 $11 {[%emt 0:00:16]} 26. Rc4 {[%emt 0:01:01] Threatening mate with Rg4+.} f5 {[%emt 0:00:51] Prevents Rg4+.} 27. g4 {[%emt 0:01:08] [#]} (27. Rc2 $11) 27... f4 $1 $36 {[%emt 0:01:20][%mdl 2048] Black is really pushing.} 28. e4 {[%emt 0:01:48] [#]} f3 $1 {[%emt 0:00:46]} 29. Bxf3 {[%emt 0:00:39]} Nf4 {[%emt 0:00:12] And now ...Qb3 would win. The board is on fire.} 30. Qc5 {[%emt 0:01:57] aiming for Qe5+.} Qxc5 {[%emt 0:00:39] &Nero is more active.} (30... Qb3 {is more complex.} 31. Qg5+ Ng6 32. Be2 e5) 31. Rxc5 {[%emt 0:00:02][%mdl 4096] Endgame KRB-KRN} Rb6 {[%emt 0:00:28]} 32. Rc2 {[%emt 0:01:34]} Rb3 $1 {[%emt 0:00:05]} 33. Bg2 {[%emt 0:01:22]} Kf6 {[%emt 0:00:19]} 34. e5+ {[%emt 0:00:39]} Kxe5 {[%emt 0:00:13]} 35. Rc5+ $1 {[%emt 0:00:12]} Kd6 {[%emt 0:01:39]} (35... Kf6 $5 {[%cal Rb3b2]} 36. Rxa5 Rxb2 $15) 36. Rxa5 {[%emt 0:00:17]} Rxb2 {[%emt 0:00:23][%cal Rb2b1]} ({Resist} 36... Nxg2 37. Kxg2 e5 38. Ra8 $14) 37. Kg1 $1 {[%emt 0:00:13]} Rb3 {[%emt 0:00:23]} 38. h4 {[%emt 0:01:28]} f6 {[%emt 0:00:28]} 39. g5 {[%emt 0:00:45]} fxg5 {[%emt 0:00:47]} 40. hxg5 {[%emt 0:00:03]} b6 {[%emt 0:00:30]} 41. Ra4 {[%emt 0:06:34]} Ke5 {[%emt 0:04:43]} 42. Ra7 {[%emt 0:01:06]} Kf5 {[%emt 0:01:12]} 43. a4 {[%emt 0:01:40]} Kxg5 {[%emt 0:06:39]} 44. Rxh7 {[%emt 0:00:33]} Rb1+ {[%emt 0:06:25]} 45. Kh2 {[%emt 0:00:57]} Rb2 {[%emt 0:00:13]} 46. Kg1 {[%emt 0:00:27]} Ne2+ {[%emt 0:03:06]} 47. Kh2 {[%emt 0:01:49]} Nc3 {[%emt 0:00:50][%csl LRa4,LRf2]} 48. Bc6 {[%emt 0:03:32]} Rxf2+ {[%emt 0:00:28]} 49. Kg3 {[%emt 0:02:04]} Ra2 {[%emt 0:00:25]} (49... Rb2 $15) 50. Rb7 {[%emt 0:02:38]} (50. Kf3 $11) 50... Ne2+ $15 {[%emt 0:02:29]} 51. Kh3 {[%emt 0:00:24]} Kf4 $1 {[%emt 0:00:18] ( -> ...Ng1+)} 52. Rf7+ {[%emt 0:02:22]} Ke5 {[%emt 0:00:02]} 53. Rb7 {[%emt 0:00:51]} Rb2 {[%emt 0:01:50]} 54. Bb5 {[%emt 0:04:04]} Nc3 {[%emt 0:00:49]} (54... Nf4+ $15 55. Kg4 Nd5) 55. Rxb6 $11 {[%emt 0:03:37]} Nxa4 {[%emt 0:03:15]} 56. Rb7 {[%emt 0:02:57][%mdl 8192]} (56. Rxe6+ $11 Kxe6 57. Bxa4) 56... Nc5 $19 {[%emt 0:00:35]} 57. Rb6 {[%emt 0:00:50]} Ne4 {[%emt 0:00:21] Weighted Error Value: White=0.23 (precise) /Black=0.07 (flawless)} 0-1

[Event "Uruguayan Championship 2022"]
[Site "Montevideo"]
[Date "2022.04.16"]
[Round "9.4"]
[White "Coppola, Claudio"]
[Black "Granara Barreto, Sebastian"]
[Result "1-0"]
[ECO "D10"]
[WhiteElo "2285"]
[BlackElo "2131"]
[Annotator "TA"]
[PlyCount "53"]
[EventDate "2022.04.08"]
[EventType "tourn"]
[EventCountry "URU"]
[SourceTitle "playchess.com"]
[Source "ChessBase"]
[SourceQuality "1"]
[TimeControl "40/5400+30:1800+30"]

{[%evp 18,53,48,32,72,33,52,48,86,87,119,119,145,146,221,225,215,218,241,259,262,209,214,205,219,213,211,219,469,466,441,406,383,369,731,710,575,465]} 1. d4 {[%emt 0:00:06]} d5 {[%emt 0:00:14]} 2. c4 {[%emt 0:00:12]} c6 {[%emt 0:00:05]} 3. cxd5 {[%emt 0:00:05]} cxd5 {[%emt 0:00:04]} 4. Nc3 {[%emt 0:00:05]} Nf6 {[%emt 0:00:10]} 5. Bf4 {[%emt 0:00:05]} Nc6 {[%emt 0:01:02]} 6. e3 {[%emt 0:00:05]} a6 {[%emt 0:00:56]} 7. Bd3 {[%emt 0:00:10]} g6 {[%emt 0:03:01]} 8. h3 {[%emt 0:07:11]} Bg7 {[%emt 0:00:08]} 9. Nf3 {[%emt 0:00:07]} O-O {[%emt 0:00:18]} 10. Rc1 {[%emt 0:00:32]} h6 {[%emt 0:03:41] D90: Grünfeld: 4 Nf3 Bg7 sidelines.} 11. Ne5 {[%emt 0:08:11]} Nxe5 {[%emt 0:07:19]} 12. Bxe5 {[%emt 0:00:53]} Be6 {[%emt 0:15:52] White is slightly better.} 13. O-O {[%emt 0:01:47] [#]} Rc8 $146 {[%emt 0:19:26]} ({Predecessor:} 13... b5 14. a4 b4 15. Ne2 Ne8 16. Bh2 Nd6 17. Nf4 Qd7 18. Qf3 Ne4 19. Bxe4 dxe4 20. Qxe4 {1-0 (63) Loncar,R (2397)-Plesec,D (2250) Bled 2018}) 14. Qb3 $1 {[%emt 0:03:57]} Qd7 {[%emt 0:08:42]} 15. Na4 {[%emt 0:03:55] Strongly threatening Nb6. &Bianco is more active.} Bxh3 {[%emt 0:06:22]} (15... Rxc1 $16 16. Rxc1 b5) 16. gxh3 {[%emt 0:01:40]} Qxh3 {[%emt 0:00:07]} 17. Rxc8 {[%emt 0:14:52]} (17. Qxb7 Ng4 18. Bf4 (18. Rxc8 Bxe5 19. Rxf8+ Kxf8 20. Qa8+ Kg7) 18... g5 $1 19. Qxd5 (19. Rxc8 gxf4 20. Rxf8+ Bxf8) 19... gxf4 $17) 17... Rxc8 {[%emt 0:00:41]} 18. Qxb7 {[%emt 0:00:26]} Rd8 {[%emt 0:14:54] aiming for ...Ng4.} 19. Be2 {[%emt 0:12:25]} ({Don't go for} 19. Bxa6 $2 Ng4 20. Bf4 (20. Qxe7 $2 Bxe5 21. Qxe5 Nxe5 $19) 20... g5 $19) 19... Ng4 {[%emt 0:11:58]} 20. Bxg4 {[%emt 0:01:54]} ({Avoid the trap} 20. Qxe7 $2 {[#]} Bxe5 $1 21. Qxe5 Nxe5 $19) 20... Qxg4+ {[%emt 0:00:05]} 21. Bg3 {[%emt 0:00:11]} e5 {[%emt 0:02:25]} 22. Qe7 {[%emt 0:05:03]} ({But not} 22. Qxa6 $6 h5 $16) 22... Rc8 {[%emt 0:01:35]} (22... Rf8 {was called for.} 23. Nc3 exd4) 23. Nb6 $18 {[%emt 0:01:17]} Rb8 {[%emt 0:02:22]} 24. Nxd5 {[%emt 0:01:23]} exd4 {[%emt 0:00:29]} 25. exd4 {[%emt 0:01:01]} Rxb2 $2 {[%emt 0:00:25]} (25... Bxd4 26. Nf6+ Bxf6 27. Qxf6 Re8 28. Qxa6 h5) 26. Qe8+ {[%emt 0:02:05]} Kh7 {[%emt 0:00:15]} 27. Qxf7 {[%emt 0:00:21] Black got outplayed after the opening.  Weighted Error Value: White=0.09 (flawless) /Black=0.42} 1-0

[Event "Uruguayan Championship 2022"]
[Site "Montevideo"]
[Date "2022.04.16"]
[Round "9.5"]
[White "Hoffman, Alejandro"]
[Black "Carvalho, Guillermo"]
[Result "1/2-1/2"]
[ECO "D35"]
[WhiteElo "2403"]
[BlackElo "2171"]
[Annotator "TA"]
[PlyCount "43"]
[EventDate "2022.04.08"]
[EventType "tourn"]
[EventCountry "URU"]
[SourceTitle "playchess.com"]
[Source "ChessBase"]
[SourceQuality "1"]
[TimeControl "40/5400+30:1800+30"]

{[%evp 13,34,11,23,0,-10,-29,-30,-18,-24,-18,-29,-29,-36,-37,-41,-44,-36,-34,-33,-37,-35,-37,-37]} 1. d4 {[%emt 0:00:06]} d5 {[%emt 0:00:26]} 2. c4 {[%emt 0:00:21]} e6 {[%emt 0:00:08]} 3. Nc3 {[%emt 0:00:38]} Nf6 {[%emt 0:00:11]} 4. cxd5 {[%emt 0:01:17]} exd5 {[%emt 0:00:07]} 5. Bg5 {[%emt 0:00:17]} Be7 {[%emt 0:00:53]} 6. e3 {[%emt 0:00:24]} O-O {[%emt 0:01:43]} 7. Bd3 {[%emt 0:00:49]} Re8 {[%emt 0:02:14]} 8. Bxf6 {[%emt 0:04:43] D35: Queen's Gambit Declined: Exchange Variation.} Bxf6 {[%emt 0:00:07]} 9. Qh5 {[%emt 0:00:39]} g6 {[%emt 0:00:14]} 10. Qxd5 {[%emt 0:02:20] Black has an edge.} Bxd4 $1 {[%emt 0:03:59]} 11. Qxd8 {[%emt 0:07:45]} Bxc3+ {[%emt 0:00:35]} 12. bxc3 {[%emt 0:00:03]} Rxd8 {[%emt 0:00:08]} 13. O-O-O {[%emt 0:00:05] Black is slightly better.} Be6 {[%emt 0:00:24]} 14. Nf3 {[%emt 0:00:51]} Nd7 {[%emt 0:03:22][%cal Bb8d7,Bd7c5,Bc5e6][%mdl 32]} ({Of course not} 14... Bxa2 15. Bb1 Rxd1+ 16. Rxd1 $14) 15. Kb2 {[%emt 0:00:12]} Nc5 {[%emt 0:07:23]} 16. Bc2 {[%emt 0:00:13]} Bd5 {[%emt 0:01:29]} 17. Rd4 {[%emt 0:10:29] Strongly threatening Rhd1.} Ne6 {[%emt 0:02:06] [#]  Weighted Error Value: White=0.05 (flawless) /Black=0.02 (flawless)} {Predecessor:} 18. Rdd1 $146 Rd6 19. e4 Rb6+ 20. Ka1 Bc4 21. Ne5 Bb5 22. Bb3 {0-1 (50) Belmeskin,I (2149)-Aklanov,F (2246) Tomsk 2006} 1/2-1/2